Workbook

Sheet 본인부담금
A1: 2023년 산모신생아 건강관리 지원사업 서비스 가격
S3: (단위 : 천원)
A4: 구 분 | E4: 서비스기간(일) | H4: 서비스 가격(원) | K4: 서비스 가격 | N4: 정부지원금(원) | Q4: 본인부담금(원)
A6: 태아유형 | B6: 출산순위 | C6: 소득구간 (기준중위소득) | D6: 소득유형 | E6: 단축 | F6: 표준 | G6: 연장 | H6: 단축 | I6: 표준 | J6: 연장 | K6: 단축 | L6: 표준 | M6: 연장 | N6: 단축 | O6: 표준 | P6: 연장 | Q6: 단축 | R6: 표준 | S6: 연장
A7: 단태아 | B7: 첫째아 | C7: 자격확인 | D7: A-가-①형 | E7: 5 | F7: 10 | G7: 15 | H7: 664 | I7: 1328 | J7: 1992 | K7: 598 | L7: 1062 | M7: 1394 | N7: 598 | O7: 1062 | P7: 1394 | Q7: 66 | R7: 266 | S7: 598
C8: 150%이하 | D8: A-통합-①형 | K8: 518 | L8: 916 | M8: 1195 | N8: 518 | O8: 916 | P8: 1195 | Q8: 146 | R8: 412 | S8: 797
C9: 151%초과 | D9: A-라①형 | K9: 418 | L9: 704 | M9: 956 | N9: 418 | O9: 704 | P9: 956 | Q9: 246 | R9: 624 | S9: 1036
B10: 둘째아 | C10: 자격확인 | D10: A-가-②형 | E10: 10 | F10: 15 | G10: 20 | H10: 1328 | I10: 1992 | J10: 2656 | K10: 1222 | L10: 1633 | M10: 1912 | N10: 1222 | O10: 1633 | P10: 1912 | Q10: 106 | R10: 359 | S10: 744
C11: 150%이하 | D11: A-통합-②형 | K11: 1062 | L11: 1394 | M11: 1620 | N11: 1062 | O11: 1394 | P11: 1620 | Q11: 266 | R11: 598 | S11: 1036
C12: 150%초과 (예외지원) | D12: A-라-②형 | K12: 863 | L12: 1096 | M12: 1328 | N12: 863 | O12: 1096 | P12: 1328 | Q12: 465 | R12: 896 | S12: 1328
B13: 셋째아 | C13: 자격확인 | D13: A-가-③형 | E13: 10 | F13: 15 | G13: 20 | H13: 1328 | I13: 1992 | J13: 2656 | K13: 1248 | L13: 1673 | M13: 1965 | N13: 1248 | O13: 1673 | P13: 1965 | Q13: 80 | R13: 319 | S13: 691
C14: 150%이하 | D14: A-통합-③형 | K14: 1089 | L14: 1414 | M14: 1647 | N14: 1089 | O14: 1414 | P14: 1647 | Q14: 239 | R14: 578 | S14: 1009
C15: 150%초과 (예외지원) | D15: A-라-③형 | K15: 890 | L15: 1135 | M15: 1381 | N15: 890 | O15: 1135 | P15: 1381 | Q15: 438 | R15: 857 | S15: 1275
A16: 쌍태아 (중증+ 단태아) | B16: 인력1명 | C16: 자격확인 | D16: B-가-①형 | E16: 10 | F16: 15 | G16: 20 | H16: 1656 | I16: 2484 | J16: 3312 | K16: 1590 | L16: 2136 | M16: 2517 | N16: 1590 | O16: 2136 | P16: 2517 | Q16: 66 | R16: 348 | S16: 795
C17: 150%이하 | D17: B-통합-①형 | K17: 1424 | L17: 1863 | M17: 2219 | N17: 1424 | O17: 1863 | P17: 2219 | Q17: 232 | R17: 621 | S17: 1093
C18: 150%초과 (예외지원) | D18: B-라-①형 | K18: 1159 | L18: 1466 | M18: 1788 | N18: 1159 | O18: 1466 | P18: 1788 | Q18: 497 | R18: 1018 | S18: 1524
B19: 인력2명 | C19: 자격확인 | D19: B-가-②형 | E19: 10 | F19: 15 | G19: 20 | H19: 2324 | I19: 3486 | J19: 4648 | K19: 2136 | L19: 2847 | M19: 3517 | N19: 2136 | O19: 2847 | P19: 3517 | Q19: 188 | R19: 639 | S19: 1131
C20: 150%이하 | D20: B-통합-②형 | K20: 1939 | L20: 2596 | M20: 3216 | N20: 1939 | O20: 2596 | P20: 3216 | Q20: 385 | R20: 890 | S20: 1432
C21: 150%초과 (예외지원) | D21: B-라-②형 | K21: 1645 | L21: 2220 | M21: 2764 | N21: 1645 | O21: 2220 | P21: 2764 | Q21: 679 | R21: 1266 | S21: 1884
A22: 삼태아 이상 (중증+쌍태아 이상) | B22: 인력 2명 | C22: 자격확인 | D22: C-가형 | E22: 15 | F22: 20 | G22: 25 | H22: 3984 | I22: 5312 | J22: 6640 | K22: 3904 | L22: 4781 | M22: 5445 | N22: 3904 | O22: 4781 | P22: 5445 | Q22: 80 | R22: 531 | S22: 1195
C23: 150%이하 | D23: C-통합형 | K23: 3586 | L23: 4250 | M23: 4980 | N23: 3586 | O23: 4250 | P23: 4980 | Q23: 398 | R23: 1062 | S23: 1660
C24: 150%초과 (예외지원) | D24: C-라형 | K24: 3068 | L24: 3665 | M24: 4316 | N24: 3068 | O24: 3665 | P24: 4316 | Q24: 916 | R24: 1647 | S24: 2324

Sheet Sheet2
A1: 단태아 | B1: 첫째아 | C1: A-가-➀형 | D1: 자격확인 | E1: 5 | F1: 10 | G1: 15 | H1: 688 | I1: 1376 | J1: 2064 | K1: 620 | L1: 1100 | M1: 1444 | N1: 68 | O1: 276 | P1: 620
C2: A-통합-➀형 | D2: 150% 이하 | K2: 537 | L2: 949 | M2: 1238 | N2: 151 | O2: 427 | P2: 826
C3: A-라-➀형 | D3: 150% 초과(예외지원) | K3: 433 | L3: 729 | M3: 991 | N3: 255 | O3: 647 | P3: 1073
B4: 둘째아 | C4: A-가-➁형 | D4: 자격확인 | E4: 10 | F4: 15 | G4: 20 | H4: 1376 | I4: 2064 | J4: 2752 | K4: 1266 | L4: 1692 | M4: 1981 | N4: 110 | O4: 372 | P4: 771
C5: A-통합-➁형 | D5: 150% 이하 | K5: 1100 | L5: 1444 | M5: 1679 | N5: 276 | O5: 620 | P5: 1073
C6: A-라-➁형 | D6: 150% 초과(예외지원) | K6: 894 | L6: 1136 | M6: 1376 | N6: 482 | O6: 928 | P6: 1376
B7: 셋째아 | C7: A-가-➂형 | D7: 자격확인 | E7: 10 | F7: 15 | G7: 20 | H7: 1376 | I7: 2064 | J7: 2752 | K7: 1293 | L7: 1733 | M7: 2036 | N7: 83 | O7: 331 | P7: 716
B8: 이상 | C8: A-통합-➂형 | D8: 150% 이하 | K8: 1128 | L8: 1465 | M8: 1707 | N8: 248 | O8: 599 | P8: 1045
C9: A-라-➂형 | D9: 150% 초과(예외지원) | K9: 922 | L9: 1176 | M9: 1431 | N9: 454 | O9: 888 | P9: 1321
A10: 쌍태아 | B10: 인력 | C10: B-가-➀형 | D10: 자격확인 | E10: 10 | F10: 15 | G10: 20 | H10: 1720 | I10: 2580 | J10: 3440 | K10: 1651 | L10: 2219 | M10: 2614 | N10: 69 | O10: 361 | P10: 826
A11: (중증+단태아) | B11: 1명 | C11: B-통합-➀형 | D11: 150% 이하 | K11: 1479 | L11: 1935 | M11: 2305 | N11: 241 | O11: 645 | P11: 1135
C12: B-라-➀형 | D12: 150% 초과(예외지원) | K12: 1204 | L12: 1523 | M12: 1857 | N12: 516 | O12: 1057 | P12: 1583
B13: 인력 | C13: B-가-➁형 | D13: 자격확인 | E13: 10 | F13: 15 | G13: 20 | H13: 2656 | I13: 3984 | J13: 5312 | K13: 2441 | L13: 3254 | M13: 4019 | N13: 215 | O13: 730 | P13: 1293
B14: 2명 | C14: B-통합-➁형 | D14: 150% 이하 | K14: 2216 | L14: 2967 | M14: 3675 | N14: 440 | O14: 1017 | P14: 1637
C15: B-라-➁형 | D15: 150% 초과(예외지원) | K15: 1880 | L15: 2537 | M15: 3159 | N15: 776 | O15: 1447 | P15: 2153
A16: 삼태아 | B16: 인력 | C16: C-가-➀형 | D16: 자격확인 | E16: 15 | F16: 25 | G16: 40 | H16: 5160 | I16: 8600 | J16: 13760 | K16: 5056 | L16: 7740 | M16: 11284 | N16: 104 | O16: 860 | P16: 2476
A17: (중증+쌍태아) | B17: 2명 | C17: C-통합-➀형 | D17: 150% 이하 | K17: 4645 | L17: 6881 | M17: 10320 | N17: 515 | O17: 1719 | P17: 3440
C18: C-라-➀형 | D18: 150% 초과(예외지원) | K18: 3974 | L18: 5934 | M18: 8944 | N18: 1186 | O18: 2666 | P18: 4816
B19: 인력 | C19: C-가-➁형 | D19: 자격확인 | E19: 15 | F19: 25 | G19: 40 | H19: 5976 | I19: 9960 | J19: 15936 | K19: 5856 | L19: 8964 | M19: 13068 | N19: 120 | O19: 996 | P19: 2868
B20: 3명 | C20: C-통합-➁형 | D20: 150% 이하 | K20: 5379 | L20: 7969 | M20: 11952 | N20: 597 | O20: 1991 | P20: 3984
C21: C-라-➁형 | D21: 150% 초과(예외지원) | K21: 4602 | L21: 6872 | M21: 10358 | N21: 1374 | O21: 3088 | P21: 5578
A22: 사태아 이상 | B22: 인력 | C22: D-가-➀형 | D22: 자격확인 | E22: 15 | F22: 25 | G22: 40 | H22: 5568 | I22: 9280 | J22: 14848 | K22: 5456 | L22: 8352 | M22: 12176 | N22: 112 | O22: 928 | P22: 2672
A23: (중증+삼태아 이상) | B23: 2명 | C23: D-통합-➀형 | D23: 150% 이하 | K23: 5012 | L23: 7425 | M23: 11136 | N23: 556 | O23: 1855 | P23: 3712
C24: D-라-➀형 | D24: 150% 초과(예외지원) | K24: 4288 | L24: 6403 | M24: 9651 | N24: 1280 | O24: 2877 | P24: 5197
B25: 인력 | C25: D-가-➁형 | D25: 자격확인 | E25: 15 | F25: 25 | G25: 40 | H25: 7968 | I25: 13280 | J25: 21248 | K25: 7808 | L25: 11953 | M25: 17424 | N25: 160 | O25: 1327 | P25: 3824
B26: 4명 | C26: D-통합-➁형 | D26: 150% 이하 | K26: 7172 | L26: 10625 | M26: 15936 | N26: 796 | O26: 2655 | P26: 5312
C27: D-라-➁형 | D27: 150% 초과(예외지원) | K27: 6136 | L27: 9163 | M27: 13811 | N27: 1832 | O27: 4117 | P27: 7437

Sheet 가격표(도,시환급금)
A1: 2026년 산모신생아 건강관리 지원사업 서비스 가격
A2: 기준가격(1일)
H3: (단위: 원)
A4: 구분 | B4: 단태아 | C4: 쌍태아 (인력1) | D4: 쌍태아 (인력2) | E4: 삼태아 (인력2) | F4: 삼태아 (인력3) | G4: 사태아 이상 (인력2) | H4: 사태아 이상 (인력4)
A5: 일반 | B5: 146.4 | C5: 183.2 | D5: 284.8 | E5: 369.6 | F5: 427.2 | G5: 398.4 | H5: 569.6
AA6: (단위: 일, 천원)
A7: 구 분 | E7: 서비스기간 | H7: 서비스 가격 | K7: 서비스 가격 | N7: 정부지원금 | Q7: 본인부담금(제공기관) | T7: 추가지원 | Z7: 최종 본인부담금(이용자)
T8: 전라남도 | W8: 광양시
A9: 태아유형 | B9: 출산순위 | C9: 소득구간 (기준중위소득) | D9: 소득유형 | E9: 단축 | F9: 표준 | G9: 연장 | H9: 단축 | I9: 표준 | J9: 연장 | K9: 단축 | L9: 표준 | M9: 연장 | N9: 단축 | O9: 표준 | P9: 연장 | Q9: 단축 | R9: 표준 | S9: 연장 | T9: 단축 | U9: 표준 | V9: 연장 | W9: 단축 | X9: 표준 | Y9: 연장 | Z9: 단축 | AA9: 표준 | AB9: 연장
A10: 단태아 | B10: 첫째아 | C10: 자격확인 | D10: A-가-①형 | E10: 5 | F10: 10 | G10: 15 | H10: 732 | I10: 1464 | J10: 2196 | N10: 659 | O10: 1165 | P10: 1525 | Q10: =$H$10-N10 -> 73 | R10: =I10-O10 -> 299 | S10: =J10-P10 -> 671 | T10: 0 | U10: 153 | V10: 190 | W10: 0 | X10: =R10-U10-AA10 -> 0 | Y10: 0 | Z10: =Q10-T10-W10 -> 73 | AA10: =R10-U10 -> 146 | AB10: =S10-V10-Y10 -> 481
C11: 150%이하 | D11: A-통합-①형 | N11: 569 | O11: 1002 | P11: 1303 | Q11: =$H$10-N11 -> 163 | R11: =I10-O11 -> 462 | S11: =J10-P11 -> 893 | T11: 90 | U11: 190 | V11: 190 | W11: 0 | X11: =R11-U11-AA11 -> 125.6 | Y11: =X11 -> 125.6 | Z11: 73 | AA11: =$I$10*10% -> 146.4 | AB11: =S11-V11-Y11 -> 577.4
C12: 151%초과 (예외지원) | D12: A-라-①형 | N12: 456 | O12: 764 | P12: 1035 | Q12: =$H$10-N12 -> 276 | R12: =I10-O12 -> 700 | S12: =J10-P12 -> 1161 | T12: 190 | U12: 190 | V12: 190 | W12: 12 | X12: =R12-U12-AA12 -> 363.6 | Y12: =X12 -> 363.6 | Z12: 74 | AA12: =$I$10*10% -> 146.4 | AB12: =S12-V12-Y12 -> 607.4
B13: 둘째아 | C13: 자격확인 | D13: A-가-②형 | E13: 10 | F13: 15 | G13: 20 | H13: 1464 | I13: 2196 | J13: 2928 | N13: 1345 | O13: 1794 | P13: 2094 | Q13: =H13-N13 -> 119 | R13: =I13-O13 -> 402 | S13: =J13-P13 -> 834 | T13: 0 | U13: 182 | V13: 190 | W13: 0 | X13: 0 | Y13: 0 | Z13: 119 | AA13: =R13-U13 -> 220 | AB13: =S13-V13-Y13 -> 644
C14: 150%이하 | D14: A-통합-②형 | N14: 1165 | O14: 1525 | P14: 1767 | Q14: =H13-N14 -> 299 | R14: =I13-O14 -> 671 | S14: =J13-P14 -> 1161 | T14: 153 | U14: 190 | V14: 190 | W14: 0 | X14: 261.4 | Y14: =X14 -> 261.4 | Z14: 146 | AA14: =$I$13*10% -> 219.6 | AB14: 709.6
C15: 150%초과 (예외지원) | D15: A-라-②형 | N15: 943 | O15: 1193 | P15: 1440 | Q15: =H13-N15 -> 521 | R15: =I13-O15 -> 1003 | S15: =J13-P15 -> 1488 | T15: 190 | U15: 190 | V15: 190 | W15: 184 | X15: =R15-U15-AA15 -> 593.4 | Y15: =X15 -> 593.4 | Z15: 147 | AA15: =$I$13*10% -> 219.6 | AB15: 704.6
B16: 셋째아 | C16: 자격확인 | D16: A-가-③형 | E16: 10 | F16: 15 | G16: 20 | H16: 1464 | I16: 2196 | J16: 2928 | N16: 1374 | O16: 1838 | P16: 2154 | Q16: =H16-N16 -> 90 | R16: =I16-O16 -> 358 | S16: =J16-P16 -> 774 | T16: 0 | U16: 138 | V16: 190 | W16: 0 | X16: 0 | Y16: 0 | Z16: 90 | AA16: =R16-U16 -> 220 | AB16: =S16-V16-Y16 -> 584
C17: 150%이하 | D17: A-통합-③형 | N17: 1195 | O17: 1548 | P17: 1797 | Q17: =H16-N17 -> 269 | R17: =I16-O17 -> 648 | S17: =J16-P17 -> 1131 | T17: 123 | U17: 190 | V17: 190 | W17: 0 | X17: 238.4 | Y17: =X17 -> 238.4 | Z17: =Q17-T17-W17 -> 146 | AA17: =$I$16*10% -> 219.6 | AB17: 702.6
C18: 150%초과 (예외지원) | D18: A-라-③형 | N18: 973 | O18: 1236 | P18: 1499 | Q18: =H16-N18 -> 491 | R18: =I16-O18 -> 960 | S18: =J16-P18 -> 1429 | T18: 190 | U18: 190 | V18: 190 | W18: 154 | X18: =R18-U18-AA18 -> 550.4 | Y18: =X18 -> 550.4 | Z18: 147 | AA18: =$I$16*10% -> 219.6 | AB18: 688.6
A19: 쌍태아 | B19: 인력1명 | C19: 자격확인 | D19: B-가-①형 | E19: 10 | F19: 15 | G19: 20 | H19: 1832 | I19: 2748 | J19: 3664 | N19: 1758 | O19: 2357 | P19: 2771 | Q19: =H19-N19 -> 74 | R19: =I19-O19 -> 391 | S19: =J19-P19 -> 893 | T19: 0 | U19: 116 | V19: 190 | W19: 0 | X19: 0 | Y19: 0 | Z19: =Q19-T19-W19 -> 74 | AA19: =R19-U19 -> 275 | AB19: 703
C20: 150%이하 | D20: B-통합-①형 | N20: 1572 | O20: 2050 | P20: 2436 | Q20: =H19-N20 -> 260 | R20: =I19-O20 -> 698 | S20: =J19-P20 -> 1228 | T20: 77 | U20: 190 | V20: 190 | W20: 0 | X20: 233.2 | Y20: =X20 -> 233.2 | Z20: =Q20-T20-W20 -> 183 | AA20: =$I$19*10% -> 274.8 | AB20: 804.8
C21: 150%초과 (예외지원) | D21: B-라-①형 | N21: 1274 | O21: 1605 | P21: 1952 | Q21: =H19-N21 -> 558 | R21: =I19-O21 -> 1143 | S21: =J19-P21 -> 1712 | T21: 190 | U21: 190 | V21: 190 | W21: 184 | X21: 678.2 | Y21: =X21 -> 678.2 | Z21: 184 | AA21: 274.8 | AB21: 843.8
B22: 인력2명 | C22: 자격확인 | D22: B-가-②형 | E22: 10 | F22: 15 | G22: 20 | H22: 2848 | I22: 4272 | J22: 5696 | N22: 2614 | O22: 3478 | P22: 4289 | Q22: =H22-N22 -> 234 | R22: =I22-O22 -> 794 | S22: =J22-P22 -> 1407 | T22: 0 | U22: 190 | V22: 190 | W22: 0 | X22: 176.8 | Y22: =X22 -> 176.8 | Z22: =Q22-T22-W22 -> 234 | AA22: =$I$22*10% -> 427.2 | AB22: 1040.2
C23: 150%이하 | D23: B-통합-②형 | N23: 2369 | O23: 3165 | P23: 3915 | Q23: =H22-N23 -> 479 | R23: =I22-O23 -> 1107 | S23: =J22-P23 -> 1781 | T23: 190 | U23: 190 | V23: 190 | W23: 0 | X23: 489.8 | Y23: =X23 -> 489.8 | Z23: 289 | AA23: =$I$22*10% -> 427.2 | AB23: 1101.2
C24: 150%초과 (예외지원) | D24: B-라-②형 | N24: 2004 | O24: 2698 | P24: 3353 | Q24: =H22-N24 -> 844 | R24: =I22-O24 -> 1574 | S24: =J22-P24 -> 2343 | T24: 190 | U24: 190 | V24: 190 | W24: 365 | X24: =R24-U24-AA24 -> 956.8 | Y24: =X24 -> 956.8 | Z24: 289 | AA24: =$I$22*10% -> 427.2 | AB24: 1196.2
A25: 삼태아 이상 | B25: 인력 2명 | C25: 자격확인 | D25: C-가-➀형 | E25: 15 | F25: 25 | G25: 40 | H25: 5544 | I25: 9240 | J25: 14784 | N25: 5431 | O25: 8303 | P25: 12088 | Q25: =H25-N25 -> 113 | R25: =I25-O25 -> 937 | S25: =J25-P25 -> 2696 | T25: 0 | U25: 13 | V25: 190 | W25: 0 | X25: 0 | Y25: 0 | Z25: =Q25-T25-W25 -> 113 | AA25: =R25-U25 -> 924 | AB25: 2506
C26: 150%이하 | D26: C-통합-➀형 | N26: 4983 | O26: 7368 | P26: 11039 | Q26: =H25-N26 -> 561 | R26: =I25-O26 -> 1872 | S26: =J25-P26 -> 3745 | T26: 7 | U26: 190 | V26: 190 | W26: 0 | X26: 758 | Y26: =X26 -> 758 | Z26: 554 | AA26: =$I$25*10% -> 924 | AB26: 2797
C27: 150%초과 (예외지원) | D27: C-라-➀형 | N27: 4253 | O27: 6337 | P27: 9540 | Q27: =H25-N27 -> 1291 | R27: =I25-O27 -> 2903 | S27: =J25-P27 -> 5244 | T27: 190 | U27: 190 | V27: 190 | W27: 546 | X27: 1789 | Y27: =X27 -> 1789 | Z27: 555 | AA27: 924 | AB27: 3265
B28: 인력 3명 | C28: 자격확인 | D28: C-가-➁형 | E28: 15 | F28: 25 | G28: 40 | H28: 6408 | I28: 10680 | J28: 17088 | N28: 6278 | O28: 9596 | P28: 13968 | Q28: =H28-N28 -> 130 | R28: =I28-O28 -> 1084 | S28: =J28-P28 -> 3120 | T28: 0 | U28: 16 | V28: 190 | X28: 0 | Y28: 0 | Z28: =Q28-T28-W28 -> 130 | AA28: =R28-U28 -> 1068 | AB28: 2476
C29: 150%이하 | D29: C-통합-➁형 | N29: 5759 | O29: 8514 | P29: 12755 | Q29: =H28-N29 -> 649 | R29: =I28-O29 -> 2166 | S29: =J28-P29 -> 4333 | T29: 8 | U29: 190 | V29: 190 | W29: 0 | X29: =R29-U29-AA29 -> 908 | Y29: =X29 -> 908 | Z29: 641 | AA29: =$I$28*10% -> 1068 | AB29: =S29-V29-Y29 -> 3235
C30: 150%초과 (예외지원) | D30: C-라-➁형 | N30: 4914 | O30: 7321 | P30: 11020 | Q30: =H28-N30 -> 1494 | R30: =I28-O30 -> 3359 | S30: =J28-P30 -> 6068 | T30: 190 | U30: 190 | V30: 190 | W30: 663 | X30: =R30-U30-AA30 -> 2101 | Y30: =X30 -> 2101 | Z30: 641 | AA30: =$I$28*10% -> 1068 | AB30: =S30-V30-Y30 -> 3777
A31: 사태아 이상 | B31: 인력 2명 | C31: 자격확인 | D31: D-가-➀형 | E31: 15 | F31: 25 | G31: 40 | H31: 5976 | I31: 9960 | J31: 15936 | N31: 5854 | O31: 8952 | P31: 13035 | Q31: =H31-N31 -> 122 | R31: =I31-O31 -> 1008 | S31: =J31-P31 -> 2901 | T31: 0 | U31: 12 | V31: 190 | W31: 0 | X31: 0 | Y31: 0 | Z31: 122 | AA31: =R31-U31 -> 996 | AB31: =S31-V31-Y31 -> 2711
C32: 150%이하 | D32: D-통합-➀형 | N32: 5372 | O32: 7946 | P32: 11906 | Q32: =H31-N32 -> 604 | R32: =I31-O32 -> 2014 | S32: =J31-P32 -> 4030 | T32: 6 | U32: 190 | V32: 190 | W32: 0 | X32: =R32-U32-AA32 -> 828 | Y32: =X32 -> 828 | Z32: 598 | AA32: =$I$31*10% -> 996 | AB32: =S32-V32-Y32 -> 3012
C33: 150%초과 (예외지원) | D33: D-라-➀형 | N33: 4586 | O33: 6836 | P33: 10293 | Q33: =H31-N33 -> 1390 | R33: =I31-O33 -> 3124 | S33: =J31-P33 -> 5643 | T33: 190 | U33: 190 | V33: 190 | W33: 602 | X33: =R33-U33-AA33 -> 1938 | Y33: =X33 -> 1938 | Z33: 598 | AA33: =$I$31*10% -> 996 | AB33: 3515
B34: 인력 4명 | C34: 자격확인 | D34: D-가-➁형 | E34: 15 | F34: 25 | G34: 40 | H34: 8544 | I34: 14240 | J34: 22784 | N34: 8369 | O34: 12789 | P34: 18604 | Q34: =H34-N34 -> 175 | R34: =I34-O34 -> 1451 | S34: =J34-P34 -> 4180 | T34: 0 | U34: 27 | V34: 190 | W34: 0 | X34: 0 | Y34: 0 | Z34: =Q34-T34-W34 -> 175 | AA34: =R34-U34 -> 1424 | AB34: 3990
C35: 150%이하 | D35: D-통합-➁형 | N35: 7674 | O35: 11338 | P35: 16978 | Q35: =H34-N35 -> 870 | R35: =I34-O35 -> 2902 | S35: =J34-P35 -> 5806 | T35: 16 | U35: 190 | V35: 190 | W35: 0 | X35: =R35-U35-AA35 -> 1288 | Y35: =X35 -> 1288 | Z35: 854 | AA35: =$I$34*10% -> 1424 | AB35: 4328
C36: 150%초과 (예외지원) | D36: D-라-➁형 | N36: 6542 | O36: 9740 | P36: 14655 | Q36: =H34-N36 -> 2002 | R36: =I34-O36 -> 4500 | S36: =J34-P36 -> 8129 | T36: 190 | U36: 190 | V36: 190 | W36: 957 | X36: =R36-U36-AA36 -> 2886 | Y36: =X36 -> 2886 | Z36: 855 | AA36: =$I$34*10% -> 1424 | AB36: 5053

Sheet Sheet1
B4: 추가지원
B5: 전라남도
A6: 단축 | B6: 단축
A7: 68 | B7: 0
A8: 151 | B8: 80
A9: 255 | B9: 180
A10: 110 | B10: 0
A11: 276 | B11: 134
A12: 482 | B12: 190
A13: 83 | B13: 0
A14: 248 | B14: 107
A15: 454 | B15: 190
A16: 69 | B16: 0
A17: 241 | B17: 67
A18: 516 | B18: 190
A19: 215 | B19: 0
A20: 440 | B20: 153
A21: 776 | B21: 190
A22: 104 | B22: 0
A23: 515 | B23: 0
A24: 1186 | B24: 190
